Cogmind - Beta 16 @@@ ROGUE MODE // 2025.10.22 @ 21:28:45 // Winter2019/RPGLIKE Player: Rentaro Result: Destroyed by S-10 Pest with Light Assault Rifle Performance ------------- Evolutions (0) 0 Regions Visited (2) 400 Robots Destroyed (51) 255 Value Destroyed (1402) 1402 Prototype IDs (0) 0 Alien Tech Used (0) 0 Bonus (7) 7 TOTAL SCORE: 2064 Bonus ------- High Alert Combat Kills 32 Friendly Fire -25 Cogmind --------- Core Integrity 0/600 Matter 249/300 Energy 160/160 System Corruption 0% Temperature Cool (0) Movement Flying (40) Location -10/Subcaves Parts ------- > --- POWER (1) -------- Light Nuclear Core > --- PROPULSION (3) --- Hover Unit Hover Unit Flight Unit > --- UTILITY (2) ------ Structural Scanner Sensor Array > --- WEAPON (2) ------- Grenade Launcher Hammer > --- INVENTORY (3) ---- Scrap Shield Light Assault Rifle Peak State ------------ > --- POWER ------------ Light Nuclear Core > --- PROPULSION ------- Hover Unit Hover Unit Hover Unit > --- UTILITY ---------- Structural Scanner Sensor Array > --- WEAPON ----------- Light Assault Rifle Grenade Launcher > --- INVENTORY -------- Protomatter Grenade Launcher Hammer [Rating: 10] Favorites ----------- Power Light Nuclear Core Engine Light Ion Engine Power Core Light Nuclear Core Propulsion Hover Unit Wheel Compact Wheel Hover Unit Hover Unit Flight Unit Flight Unit Utility Structural Scanner Device Structural Scanner Weapon Light Assault Rifle Ballistic Gun Light Assault Rifle Launcher Grenade Launcher Impact Weapon Hammer Build | -11 -10 -10 ------- Run | Yrd Mat Sub Slots Evolved 4 | 3 1 . Power . | . . . Propulsion 2 | 1 1 . Utility 1 | 1 . . Weapon 1 | 1 . . Parts Attached 16 | 5 8 3 Power 2 | 1 1 . Engine 1 | 1 . . Core 1 | . 1 . Reactor . | . . . Propulsion 7 | 2 4 1 Treads . | . . . Leg . | . . . Wheel 2 | 2 . . Hover 4 | . 4 . Flight 1 | . . 1 Utility 2 | . 2 . Device 2 | . 2 . Storage . | . . . Processor . | . . . Hackware . | . . . Protection . | . . . Artifact . | . . . Weapon 5 | 2 1 2 Energy Gun . | . . . Energy Cannon . | . . . Ballistic Gun 2 | 2 . . Ballistic Cannon . | . . . Launcher 2 | . 1 1 Special Weapon . | . . . Impact Weapon 1 | . . 1 Slashing Weapon . | . . . Piercing Weapon . | . . . Special Melee Weapon . | . . . Unidentified Prototypes . | . . . Parts Lost . | . . . Power . | . . . Propulsion . | . . . Utility . | . . . Weapon . | . . . Highest Loss Streak . | . . . To Critical Strikes . | . . . Average Backups 1 | . 1 2 Power . | . . . Propulsion . | . . . Utility . | . . . Weapon 1 | . 1 1 Tool/Special . | . . . Unused Backups 1 | . . 1 Power . | . . . Propulsion . | . . . Utility 1 | . . 1 Weapon . | . . . Tool/Special . | . . . Average Slot Usage (%) 91 | . 88 100 Core 11 | . 11 12 Wheel 7 | . 10 . Hover 25 | . 21 34 Device 18 | . 15 25 Ballistic Gun 16 | . 18 10 Launcher 7 | . 7 9 Impact Weapon 1 | . . 4 Peak Build Rating 10 | 5 10 10 Average Rating 8 | 3 8 10 On Entrance 5 | . 5 10 Avg Prop Armor Cover (%) 11 | . 4 13 Naked Turns . | . . . Heaviest Build 12 | 6 11 12 Greatest Support 37 | 37 37 28 Greatest Overweight (x) . | . . . Average Overweight (x) . | . . . Largest Inventory Capacity 3 | 2 3 3 Average Capacity 2 | 1 2 3 Most Carried 3 | . 3 3 Average Carried 2 | . 2 2 Final Capacity 3 | 2 3 3 Final Carried 3 | . 3 3 Class Distribution -------------------- 100% | Mutant Dominant Class ---------------- Mutant | -10/Materials Mutant | -10/Subcaves Resources | -11 -10 -10 ----------- Run | Yrd Mat Sub Matter Collected 1785 | 260 1020 505 Remotely . | . . . Salvage Created 1030 | . 932 98 Parts 79 | . 70 9 Haulers Intercepted 2 | . 2 . Recyclers Shooed 3 | . 3 . Parts Field Recycled . | . . . Retrieved Matter . | . . . Parts Self-Destructed 11 | . . 11 Prevented . | . . . Parts Restored . | . . . Kills | -11 -10 -10 ------- Run | Yrd Mat Sub Combat Hostiles Destroyed 31 | . 20 11 Guns 12 | . 11 1 AOE 19 | . 9 10 Classes Destroyed 11 | . 9 2 Worker 6 | . 6 . Builder 3 | . 3 . Tunneler 1 | . 1 . Hauler 2 | . 2 . Recycler 1 | . 1 . Operator 2 | . 2 . Turret 2 | . . 2 Watcher 3 | . 3 . Swarmer 7 | . 3 4 Grunt 17 | . 17 . Subdweller 7 | . . 7 Best Kill Streak 6 | . 5 6 Combat Bots Only 4 | . 3 4 Max Kills in Single Turn 3 | . 3 2 Gunslinging . | . . . Exploded 2 | . 2 2 Melee . | . . . Uniques/NPCs Destroyed . | . . . Combat | -11 -10 -10 -------- Run | Yrd Mat Sub Hostile Shots Fired 121 | . 57 64 Missed 41 | . 17 24 Hits 80 | . 40 40 Projectile 80 | . 40 40 AOE 6 | . . 6 Damage Taken 1297 | . 542 755 Core 1062 | . 440 622 Absorbed by Shields . | . . . Redirected to Core 739 | . 307 432 Core Remaining (%) 100 | 100 . . Volleys Fired 196 | . 148 48 Largest 2 | . 2 1 Hottest 40 | . 40 30 Shots Fired 275 | . 227 48 Gun 160 | . 158 2 Cannon . | . . . Launcher 115 | . 69 46 Special . | . . . Kinetic 160 | . 158 2 Thermal . | . . . Explosive 115 | . 69 46 Electromagnetic . | . . . Robot Hit Streak 19 | . 7 19 Robot Miss Streak 4 | . 4 1 Penetration Max . | . . . Secondary Targets 1 | . 1 . Max Gunslinging Chain 1 | . 1 . Shots Hit Robots 105 | . 85 20 Core Hits 97 | . 68 29 Critical Kills . | . . . Critical Parts Destroyed 2 | . 2 . Critical Strikes 2 | . 2 . Destroy 2 | . 2 . Melee Attacks 5 | . . 5 Impact 5 | . . 5 Slashing . | . . . Piercing . | . . . Sneak Attacks . | . . . Combat Hostiles . | . . . Follow-up Attacks . | . . . Damage Inflicted 3873 | . 1906 1967 Guns 898 | . 879 19 Cannons . | . . . Explosions 2908 | . 990 1918 Melee 30 | . . 30 Ramming 37 | . 37 . Kinetic 898 | . 879 19 Thermal 43 | . 43 . Explosive 2865 | . 947 1918 Electromagnetic . | . . . Impact 30 | . . 30 Slashing . | . . . Piercing . | . . . Highest Corruption . | . . . Average Corruption . | . . . Corruption Purged . | . . . Corruption Blocked . | . . . Overload Shots . | . . . Overflow Damage 32 | . 7 25 Projectiles . | . . . Explosions 32 | . 7 25 Melee . | . . . Knockbacks . | . . . Impact . | . . . Kinetic . | . . . Secondary . | . . . Self-Inflicted Damage 157 | . 99 58 Shots 11 | . 7 4 Rammed 5 | . 5 . Targets Rammed 5 | . 5 . Kicked . | . . . Crushed . | . . . Highest Temperature 26 | . 26 4 Average Temperature 5 | . 5 4 Received Heat Transfer 384 | . 246 138 Siege Activations . | . . . Martial Activations . | . . . Shielding Activations . | . . . Robots Disrupted . | . . . Combat Hostiles . | . . . Robots Corrupted . | . . . Combat Hostiles . | . . . Parts Fried . | . . . Impact Corruptions . | . . . Robots Melted . | . . . Combat Hostiles . | . . . Parts Melted . | . . . Heat Transferred 50 | . 50 . Parts Sabotaged . | . . . Parts Stolen . | . . . Parts Stripped . | . . . Power Chain Reactions . | . . . Alert | -11 -10 -10 ------- Run | Yrd Mat Sub Maximum Alert Level 3 | . 3 . Low Security (%) 51 | 100 50 . Level 1 10 | . 10 . Level 2 17 | . 17 . Level 3 20 | . 21 . Level 4 . | . . . Level 5 . | . . . High Security . | . . . Max Security . | . . . Peak Influence 738 | . 738 . Initial . | . . . Average 315 | . 327 . Influence Increases 1598 | . 1358 240 Destroy 0b10 Robot/C 520 | . 400 120 Destroy 0b10 Robot/NC 90 | . 90 . Destroy Leader 90 | . 90 . Successful Hack 11 | . 11 . Disable Machine 405 | . 405 . Destroy Structure 347 | . 347 . Partial Spotted 15 | . 15 . Lose Combat Pursuer 120 | . . 120 Influence Decreases 1290 | . 675 615 Entered New Map 329 | . . 329 Time Decay 789 | . 503 286 Purge Threat 172 | . 172 . Squads Dispatched 5 | . 5 . Investigation 3 | . 3 . Extermination . | . . . Reinforcement 2 | . 2 . Assault . | . . . Garrison . | . . . Intercept . | . . . Searches Triggered . | . . . Construction Impeded . | . . . Haulers Reinforced . | . . . Active Scanning Responses . | . . . Cargo Convoy Interrupts . | . . . Stealth | -11 -10 -10 --------- Run | Yrd Mat Sub Distress Signals 2 | . 2 . Communications Jammed . | . . . Distress Signals . | . . . Times Spotted 46 | . 26 20 Peak Tracking Total 5 | . 5 5 Tactical Retreats 1 | . . 1 Traps | -11 -10 -10 ------- Run | Yrd Mat Sub Traps Triggered . | . . . Indirectly . | . . . Trap Hack Attempts . | . . . Triggered . | . . . Disarmed . | . . . Reprogrammed 6 | . 6 . Reused . | . . . Traps Extracted . | . . . Installed . | . . . Triggered . | . . . Machines | -11 -10 -10 ---------- Run | Yrd Mat Sub Machines Disabled 32 | . 29 3 Max in Single Turn 3 | . 3 2 Machines Repaired . | . . . Machines Dismantled . | . . . Machines Sabotaged . | . . . Overloaded Fab Kills . | . . . Hacking | -11 -10 -10 --------- Run | Yrd Mat Sub Machines Accessed 7 | . 7 . Terminals 5 | . 5 . Fabricators . | . . . Repair Stations . | . . . Recycling Units 2 | . 2 . Scanalyzers . | . . . Garrison Access . | . . . Total Hacks 24 | . 24 . Successful 12 | . 12 . Failed 12 | . 12 . Catastrophic 2 | . 2 . Database Lockouts . | . . . Manual 8 | . 8 . Terminals 18 | . 18 . Fabricators . | . . . Repair Stations . | . . . Recycling Units 6 | . 6 . Scanalyzers . | . . . Garrison Access . | . . . Terminal Hacks 5 | . 5 . Alert Level 1 | . 1 . Unreport Threat 2 | . 2 . Locate Traps 1 | . 1 . Reprogram Traps 1 | . 1 . Fabricator Hacks . | . . . Repair Station Hacks . | . . . Recycling Unit Hacks 2 | . 2 . Retrieve Components 2 | . 2 . Scanalyzer . | . . . Garrison Access Hacks . | . . . Unauthorized Hacks 5 | . 5 . Terminals 5 | . 5 . Botnet 5 | . 5 . Fabricators . | . . . Repair Stations . | . . . Recycling Units . | . . . Scanalyzers . | . . . Garrison Access . | . . . Data Cores Recovered . | . . . Used . | . . . Hacking Detections 6 | . 6 . Full Trace Events 5 | . 5 . Feedback Events . | . . . Feedback Blocked . | . . . Robot Schematics Acquired . | . . . Robots Built . | . . . Authchips . | . . . Time . | . . . Total Robot Build Rating . | . . . Part Schematics Acquired . | . . . Parts Built . | . . . Authchips . | . . . Time . | . . . Total Part Build Rating . | . . . Part Studies Acquired . | . . . Parts Repaired . | . . . Time . | . . . Parts Recycled . | . . . Recycled Matter . | . . . Retrieved Matter . | . . . Retrieved Components 11 | . 11 . Parts Scanalyzed . | . . . Part Schematics Acquired . | . . . Parts Damaged . | . . . Bothacking | -11 -10 -10 ------------ Run | Yrd Mat Sub Used RIF Installer . | . . . Robots Hacked . | . . . Non-combat . | . . . Combat . | . . . Robot Hacks Applied . | . . . Relay Couplers Released . | . . . Fabnet Peak Effective % . | . . . Robots Rewired . | . . . Allies Hacked . | . . . Hacks Repelled . | . . . Allies | -11 -10 -10 -------- Run | Yrd Mat Sub Total Allies . | . . . Largest Group . | . . . Highest-Rated Group . | . . . Highest-Rated Ally . | . . . Total Orders . | . . . Ally Attacks . | . . . Total Damage . | . . . Kills . | . . . Allies Corrupted . | . . . Allies Melted . | . . . Intel | -11 -10 -10 ------- Run | Yrd Mat Sub Active Infowar (turns) 1494 | . 863 631 Sensors 1295 | . 664 631 Structural 1494 | . 863 631 Robot Analysis Total . | . . . Derelict Logs Recovered . | . . . Drone Launches . | . . . Drone Recoveries . | . . . Exploration | -11 -10 -10 ------------- Run | Yrd Mat Sub Turns Passed 2110 | 55 1424 631 Spaces Moved 2449 | 49 1512 888 Core 5 | 5 . . Treads . | . . . Legs . | . . . Wheels 266 | 44 222 . Hover 1983 | . 1290 693 Flight 195 | . . 195 Fastest Speed 40 | 50 52 40 Average Speed 56 | 94 60 49 Slowest Speed 100 | 100 100 52 Overloaded Moves . | . . . Propulsion Burnouts . | . . . Robots Hopped . | . . . Potential Cave-ins . | . . . Cave-ins Triggered . | . . . Exploration Rate (%) 51 | 4 100 49 Regions Visited 2 Branch Regions 1 Pre-discovered Areas . | . . . Known Exits Taken . | . . . Unknown Exits Taken 2 | 1 1 . Scrap Searched 5 | . . 5 Spaces Dug 30 | . 18 12 Terrain Destroyed 550 | . 402 148 Melee . | . . . Projectile . | . . . AOE 550 | . 402 148 Terrain Rammed . | . . . Walls Destroyed . | . . . Machines Disabled . | . . . Actions | -11 -10 -10 --------- Run | Yrd Mat Sub Total 2896 | 55 1817 1024 Wait 168 | . 94 74 Move 2447 | 48 1511 888 Hop . | . . . Pick Up 13 | . 11 2 Fast Attach 9 | 6 3 . Attach . | . . . Detach . | . . . Swap 8 | . 5 3 Drop 13 | 1 9 3 Fire 196 | . 148 48 Melee 5 | . . 5 Ram 5 | . 5 . Kick . | . . . Crush . | . . . Escape Stasis . | . . . Rewire . | . . . Trap . | . . . Miscellaneous 32 | . 31 1 Route ------- -11/Scrapyard -10/Materials (discovered 6 exits: [*Mat x3] / [*Min x2] / [*Sub]) -10/Subcaves (discovered 1 exit: [*Rec]) History --------- Turn | Location | Event 7 | -11/Scrapyard | Upgraded with Propulsion slot (x1) 7 | -11/Scrapyard | Upgraded with Utility slot (x1) 7 | -11/Scrapyard | Upgraded with Weapon slot (x1) 27 | -11/Scrapyard | Discovered new exit (range 15) 56 | -11/Scrapyard | Entered Materials 314 | -10/Materials | Build established: Mutant 374 | -10/Materials | Discovered new exit (range 15) 663 | -10/Materials | Reached level 2 771 | -10/Materials | Discovered new exit (range 13) 792 | -10/Materials | Upgraded with Propulsion slot (x1) 911 | -10/Materials | Reached level 3 935 | -10/Materials | Discovered new exit (range 11) 979 | -10/Materials | Discovered new exit (range 15) 1022 | -10/Materials | Discovered new exit (range 15) 1411 | -10/Materials | Discovered new exit (range 10) 1480 | -10/Materials | Entered Subcaves 1481 | -10/Subcaves | Approached by a straggling Scientist 1482 | -10/Subcaves | Reached level 4 1491 | -10/Subcaves | A swath of the cavern ceiling suddenly collapsed 1524 | -10/Subcaves | Ambushed by Subdwellers from Twisted Machinery 1705 | -10/Subcaves | Shifting Twisted Machinery released Sub. Machine Gun 1722 | -10/Subcaves | Core integrity fell below 50% 1860 | -10/Subcaves | Discovered new exit (range 11) 1892 | -10/Subcaves | Reached level 5 2017 | -10/Subcaves | Shifting Twisted Machinery released Hvy. Riot Gun 2022 | -10/Subcaves | Shifting Twisted Machinery released Sub. Shrapnel Launcher 2057 | -10/Subcaves | Core integrity fell below 20% 2111 | -10/Subcaves | Destroyed by S-10 Pest with Light Assault Rifle Last Messages --------------- Machinery. 02018_ Acquired 10 matter. Sub. Shrapnel Launcher falls loose from the Twisted Machinery. FL-577(c): "I think it's somewhere northwest of here" 02049_ Hvy. Assault Rifle fries itself beyond repair. 02052_ Heat Sink fries itself beyond repair. 02054_ Imp. Ion Engine fries itself beyond repair. 02055_ Beam Rifle fries itself beyond repair. 02059_ The unstable cave ceiling collapses. 02061_ Destroyed Scrap Shield. 02063_ KN-BJ3(R) destroyed. 02068_ Acquired 41 matter. 02068_ Acquired 18 matter. 02080_ The unstable cave ceiling collapses. FL-577(c): "I think it's somewhere north of here" Map ----- +----------------------------------------------------+ | ????????????????## ## # ##??? | | ????????????????## ### !| " ##??? | | ????????????????## ### [&* ##??? | | ????????????????### ## ## ###??? | | ????????????????### ########??? | | ????????????????### #######???? | | ???????????????#### ########????????? | | ??????????????#### ## ########????????? | | ?????????????#### ######??????????????? | | ?????????????### #####??????????????? | | ?????????????## ###???????????????? | | ?????????????### ##???????????????? | | ?????????????#### ##???????????????? | | ?????????????##### ##???????????????? | | ?????????????## ## ##???????????????? | | ?????????????### ?## ###??????????????? | | ?????????????## ### ##??????????????? | | ?????????????## #### ##??????????????? | | ?????????????### ##### ##??????????????? | | ?????????????## ########??????????????? | | ?????????????### ######??????????????? | | ?????????????### ##???????????????? | | ?????????????#### #"???????????????? | | ?????????????#### # ???????????????? | | ?????????????## ###???????????????? | | ?????????????## @ #####???????????????? | | ????????????### ### #????????????????? | | ????????????## ##??????????????????? | | ????????????### ##??????????????????? | | ????????????### s ??????????????????? | | ?????????????### s ?????????????????? | | ?????????????#### s ##??????????????? | | ??????????????##### ####??????????????? | | ???????????????#### ####??????????????? | | ??????????????????######????????????????? | | ??????????????????######????????????????? | | ????????????????????????????????????????? | | ????????????????????????????????????????? | | ????????????????????????????????????????? | | ????????????????????????????????????????? | | ????????????????????????????????????????? | | ????????????????????????????????????????? | | ????????????????????????????????????????? | | ????????????????????????????????????????? | | ????????????????????????????????????????? | | ????????????????????????????????????????? | | ????????????????????????????????????????? | | ????????????????????????????????????????? | | ????????????????????????????????????????? | | ????????????????????????????????????????? | +----------------------------------------------------+ Best States ------------- Heat Dissipation 25 Energy Generation 14 Energy Capacity 160 Matter Stores 300 Matter Capacity 300 Sight Range 16 Robot Scan Range 14 Terrain Scan Density 10 Evasion (%) 62 Item Schematics ----------------- None Robot Schematics ------------------ None Fabricated ------------ Nothing Repaired ---------- Nothing Studied --------- None Alien Tech Used ----------------- None Achievements -------------- None Challenges ------------ None RPGLIKE | -11 -10 -10 --------- Run | Yrd Mat Sub Levels Raised 4 | . 2 2 XP Earned 9041 | 3000 4441 1600 XP Spent 4500 | 2350 2150 . Upgrades 9 | 6 3 . Propulsion Slot 2 | 1 1 . Utility Slot 1 | 1 . . Weapon Slot 1 | 1 . . Mass Support 2 | 1 1 . Inventory Capacity 3 | 2 1 . Protomatter Created 244 | . 234 10 Integrity Restored 571 | . 553 18 Core 458 | . 440 18 Parts 113 | . 113 . Protomatter Decayed 124 | . 34 90 Game ------ Seed ArcDisassembledArchive Manual? 0 Play Time 00:28:25 Cumulative 67.8 hours Start 2025.10.22 @ 21:01:54 End 2025.10.22 @ 21:28:45 Sessions 1 Manual Loads 0 Difficulty Rogue Special Mode Winter2019/RPGLIKE Game No. 38 Rogue 38 Adventurer 0 Explorer 0 Win Type - Total 1 Types 0/0/0/1/0/0/0/0/0/0 Lore% 33 Gallery% 32 Achievement% 23 Wizard Run 0 Options --------- Layout 2 ASCII 0 Keyboard 0 Movement Mouse Keybinds 0 Fullscreen 2 Font 24/Terminus Map View 50x44 Zoom Use 0% Tactical HUD 1 Map Filters NONE Filters NONE Steam 1 RUN: 60a4e341-ddab-4453-a189-02d3369e07c3